[Event "56th Biel GMT Classical 2023"]
[White "Navara,David"]
[Black "Le,Quang Liem"]
[Site "Biel"]
[Round "7.1"]
[Annotator "TA"]
[Result "1/2-1/2"]
[Date "2023.07.26"]
[WhiteElo "2689"]
[BlackElo "2728"]
[PlyCount "74"]
[TimeControl "60"]

{[%evp 9,74,10,10,12,7,0,0,10,9,0,0,0,0,0,0,0,14,7,13,8,13,12,26,20,37,28,35,35,33,39,27,0,0,0,37,0,0,-2,-2,-2,-2,-2,-2,-2,-2,-2,-2,-7,-1,-2,-2,-2,-1,-2,-2,-2,-2,-2,-2,-2,0,-2,0,-2,0,-2,0]} 1. c4 {[%emt 0:0:2]} e6 {[%emt 0:0:12]} 2. g3 {[%emt 0:0:29]} d5 {[%emt 0:0:15]} 3. Bg2 {[%emt 0:0:14]} Nf6 {[%emt 0:0:24]} 4. Nf3 {[%emt 0:0:8]} dxc4 {[%emt 0:0:30]} 5. Qa4+ {[%emt 0:0:10]} Bd7 {[%emt 0:0:40]} 6. Qxc4 {[%emt 0:0:10] A13: English Opening: 1...e6.} c5 {[%emt 0:0:8]} 7. Ne5 {[%emt 0:1:38]} Qc8 {[%emt 0:0:14]} 8. Nc3 {[%emt 0:2:43]} Nc6 {[%emt 0:0:19]} 9. Nxd7 {[%emt 0:0:7]} Qxd7 {[%emt 0:0:9]} 10. a4 {[%emt 0:1:3]} Be7 {[%emt 0:3:0]} 11. a5 {[%emt 0:2:11]} O-O {[%emt 0:4:54]} 12. O-O {[%emt 0:1:33]} Rac8 {[%emt 0:0:32]} 13. d3 {[%emt 0:1:50]} Rfd8 {[%emt 0:6:5] [#]} 14. Be3 $146 {[%emt 0:17:53]} ({Predecessor:} 14. Bg5 Nd4 15. Bxf6 Bxf6 16. Qa4 Qc7 17. e3 Nc6 18. Rfd1 Nb4 19. Nb5 Qe7 20. Qb3 {1-0 Neverov,V (2413)-Joshua,A (2283) Budapest Vezerkepzo GM 04 2023 (5)} )Nb4 {[%emt 0:23:14]} 15. Qb5 {[%emt 0:18:38]} Nc2 {[%emt 0:2:39]} 16. Bxb7 {[%emt 0:1:14]} Rb8 {[%emt 0:2:3] [#] Hoping for ...Qxb5.} 17. a6 $1 {[%emt 0:10:5]} Nxa1 {[%emt 0:0:18]} 18. Rxa1 {[%emt 0:0:33] aiming for b4.} Nd5 {[%emt 0:1:17]} 19. Qxd7 {[%emt 0:6:7]} Rxd7 {[%emt 0:0:2]} 20. Bc6 {[%emt 0:7:37]} Rdd8 {[%emt 0:0:19] Strongly threatening ...Nxe3.} 21. Bb7 {[%emt 0:6:43] This pair of bishops is nice.} Rd7 {[%emt 0:0:55]} 22. Bc6 {[%emt 0:6:7]} Rdd8 {[%emt 0:0:9][%cal Bd7d8,Bd8b8,Bb8b2][%mdl 32] ...Nxe3 would be deadly. The position is equal.} 23. Nb5 {[%emt 0:0:13] [#]} Rxb5 {[%emt 0:0:17]} 24. Bxb5 {[%emt 0:0:13]} Rb8 {[%emt 0:0:11]} 25. Bc4 {[%emt 0:1:36]} Nxe3 {[%emt 0:0:57]} 26. fxe3 {[%emt 0:0:13]} Rxb2 $11 {[%emt 0:0:8][%mdl 4096] Endgame KRB-KRB} 27. Ra5 {[%emt 0:2:33]} h5 {[%emt 0:2:15]} (27... Rxe2 $2 28. Rb5 $18 )28. Kf2 {[%emt 0:3:23]} g6 {[%emt 0:0:13]} 29. Rb5 {[%emt 0:2:7]} Rxb5 {[%emt 0:0:10]} 30. Bxb5 {[%emt 0:0:5] KB-KB} Bd8 {[%emt 0:0:12]} 31. Kf3 {[%emt 0:0:21]} Kf8 {[%emt 0:0:13]} 32. h4 {[%emt 0:0:35]} Ke7 {[%emt 0:0:13]} 33. e4 {[%emt 0:0:24]} Bc7 {[%emt 0:0:57]} 34. Ba4 {[%emt 0:1:44]} Bd8 {[%emt 0:0:10]} 35. Bb5 {[%emt 0:0:5]} Bc7 {[%emt 0:0:9]} 36. Ba4 {[%emt 0:0:3]} Bd8 {[%emt 0:0:11]} 37. Bb5 {[%emt 0:0:3]} Bc7 {[%emt 0:0:9] Weighted Error Value: White=0.04 (flawless) /Black=0.02 (flawless)} 1/2-1/2

[Event "56th Biel GMT Classical 2023"]
[White "Amin,Bassem"]
[Black "Yu,Yangyi"]
[Site "Biel"]
[Round "7.2"]
[Annotator "TA"]
[Result "1/2-1/2"]
[Date "2023.07.26"]
[WhiteElo "2694"]
[BlackElo "2735"]
[PlyCount "48"]
[TimeControl "60"]

{[%evp 10,48,0,-8,-10,0,0,-9,-6,0,0,-8,-12,-7,0,-14,-23,-13,-14,-22,-11,-18,5,0,0,0,7,6,6,3,7,0,0,0,11,0,7,0,16,0,0]} 1. e4 {[%emt 0:0:31]} e5 {[%emt 0:0:26]} 2. Bc4 {[%emt 0:0:28]} Nf6 {[%emt 0:0:17]} 3. Nc3 {[%emt 0:0:5]} Bc5 {[%emt 0:2:13]} 4. d3 {[%emt 0:0:14]} c6 {[%emt 0:0:56]} 5. Nf3 {[%emt 0:1:5]} d6 {[%emt 0:0:27]} 6. O-O {[%emt 0:1:55]} O-O {[%emt 0:0:45] C27: Vienna Game: 2...Nf6 3 Bc4 Nxe4.} 7. h3 {[%emt 0:1:7]} Nbd7 {[%emt 0:4:48]} 8. a3 {[%emt 0:3:26]} Bb6 {[%emt 0:3:55]} 9. Ba2 {[%emt 0:0:39]} Re8 {[%emt 0:1:46] [#]} 10. Re1 $146 {[%emt 0:8:46]} ({Predecessor:} 10. Nh4 Nf8 11. Qf3 g6 12. Bg5 Kg7 13. Na4 Ne6 14. Bxe6 Rxe6 15. Nxb6 Qxb6 16. Rab1 {½-½ Moral Garcia,S (2264)-Merario Alarcon,A (2395) ESP-ch 85th Linares 2020 (6)} )Nf8 {[%emt 0:2:17]} 11. Be3 {[%emt 0:0:33]} (11. Ng5 {is interesting.} Ne6 12. Qf3 a5 13. Bd2 )Be6 {[%emt 0:3:21]} 12. d4 {[%emt 0:4:42]} Bxa2 {[%emt 0:2:30]} 13. Rxa2 {[%emt 0:0:7]} exd4 {[%emt 0:3:13] The position is equal.} 14. Bxd4 {[%emt 0:0:9]} Ba5 {[%emt 0:8:59]} 15. b4 {[%emt 0:2:2]} Bb6 {[%emt 0:1:39]} 16. Ra1 {[%emt 0:3:44]} Ne6 {[%emt 0:4:40]} 17. Bxb6 {[%emt 0:5:28]} axb6 {[%emt 0:0:10]} 18. a4 {[%emt 0:0:19]} Qc7 {[%emt 0:0:28]} 19. Qd3 {[%emt 0:11:25]} Rad8 {[%emt 0:6:13]} 20. Rad1 {[%emt 0:0:58]} Nf4 {[%emt 0:9:28]} 21. Qd2 {[%emt 0:3:34]} Ne6 {[%emt 0:0:8]} 22. Qd3 {[%emt 0:6:57]} Nf4 {[%emt 0:0:10]} 23. Qd2 {[%emt 0:4:7]} Ne6 {[%emt 0:0:34]} 24. Qd3 {[%emt 0:7:12]} Nf4 {[%emt 0:1:1] A rather calm draw.   Weighted Error Value: White=0.04 (flawless) /Black=0.03 (flawless)} 1/2-1/2

[Event "56th Biel GMT Classical 2023"]
[White "Erigaisi Arjun"]
[Black "Keymer,Vincent"]
[Site "Biel"]
[Round "7.3"]
[Annotator "TA"]
[Result "1-0"]
[Date "2023.07.26"]
[WhiteElo "2710"]
[BlackElo "2690"]
[PlyCount "173"]
[TimeControl "60"]

{[%evp 16,173,21,27,32,34,40,13,24,0,24,39,42,0,0,4,0,0,20,20,21,15,19,0,0,0,0,0,0,0,0,0,19,26,41,25,31,40,26,32,22,59,32,33,91,96,93,91,90,85,86,88,89,73,73,72,72,24,50,41,40,38,37,48,148,88,122,124,118,120,120,120,121,117,168,144,280,298,292,290,288,268,298,306,262,278,287,283,431,431,431,393,436,436,433,424,432,421,405,420,535,383,466,376,376,375,535,535,587,471,295,295,29955,29956,29957,29959,29959,29960,29959,29961,29960,29961,29961,29962,29962,29963,29965,29968,29968,29970,29972,29973,29973,29973,29974,29974,29976,29977,29977,29978,29978,29979,29979,29980,29979,29980,29981,29982,29982,29982,29982,29983,29984,29985,29985,29986,29986,29987,29990,29991]} 1. e4 {[%emt 0:0:5]} e5 {[%emt 0:0:3]} 2. Nf3 {[%emt 0:0:5]} Nc6 {[%emt 0:0:3]} 3. Bb5 {[%emt 0:0:5]} a6 {[%emt 0:0:4]} 4. Ba4 {[%emt 0:0:4]} Nf6 {[%emt 0:0:4]} 5. O-O {[%emt 0:0:16]} Be7 {[%emt 0:0:4]} 6. Re1 {[%emt 0:0:6]} b5 {[%emt 0:0:3]} 7. Bb3 {[%emt 0:0:4]} O-O {[%emt 0:0:5]} 8. h3 {[%emt 0:0:16]} Bb7 {[%emt 0:0:38]} 9. d3 {[%emt 0:0:10]} d5 {[%emt 0:0:41] seems to push 9...d6 aside. C88: Closed Ruy Lopez: Anti-Marshall Systems.} 10. exd5 {[%emt 0:0:7]} Nxd5 {[%emt 0:0:4]} 11. Nbd2 {[%emt 0:0:15]} Qd7 {[%emt 0:1:1] The position is equal.} 12. a4 {[%emt 0:0:21]} Nf4 {[%emt 0:2:45]} 13. Ne4 {[%emt 0:0:39]} Ng6 {[%emt 0:0:16] [#]} 14. h4 $146 {[%emt 0:0:41]} ({Predecessor:} 14. Be3 h6 15. Nfd2 Nd4 16. Bxd4 exd4 17. Qh5 Kh8 18. Nf3 c5 19. g3 Rad8 20. axb5 axb5 {½-½ Niewiadomski,W (2432)-Lubas,J (2375) POL-ch64 final email 2021} )Qg4 {[%emt 0:0:22]} (14... Nxh4 $2 15. Nxh4 Bxh4 16. Nc5 $18 )(14... Bxh4 15. Nxh4 Nxh4 16. Nc5 $16 (16. Qh5 Nf5 $16 ))15. Bg5 {[%emt 0:0:7]} Bxg5 {[%emt 0:0:0][%mdl 64] Remove Defender} 16. hxg5 {[%emt 0:0:0]} Rad8 {[%emt 0:0:0]} (16... bxa4 17. Rxa4 Nf4 18. Ng3 $16 )17. axb5 {[%emt 0:3:5]} axb5 {[%emt 0:1:53]} 18. g3 {[%emt 0:0:5]} Bc8 {[%emt 0:2:44]} 19. Nfd2 {[%emt 0:1:27]} Qh3 {[%emt 0:3:16]} 20. c3 {[%emt 0:0:17] Dodges Nd4} Rxd3 {[%emt 0:17:26]} 21. Qe2 {[%emt 0:0:13]} Rfd8 {[%emt 0:1:16]} 22. Ra8 {[%emt 0:0:7]} b4 {[%emt 0:12:14]} 23. Rea1 {[%emt 0:12:5]} Qg4 {[%emt 0:27:48]} 24. f3 {[%emt 0:6:35]} Qh3 {[%emt 0:18:21][%cal Od3d2] Threatens to win with ...Rxd2!} 25. Nf1 {[%emt 0:10:26] Really sharp!} bxc3 {[%emt 0:0:24]} 26. bxc3 {[%emt 0:0:45]} Nd4 {[%emt 0:3:53]} 27. Bxf7+ {[%emt 0:3:5]} (27. Qxd3 Nf4 28. gxf4 (28. Bxf7+ $2 Kxf7 29. Qc4+ Be6 $19 )Nxf3+ $19 )Kxf7 {[%emt 0:0:4]} 28. cxd4 {[%emt 0:0:6]} (28. Qxd3 $2 Nf4 29. Qc4+ (29. gxf4 $2 Nxf3+ $19 {[%mdl 64] Discovered Attack} )Be6 30. g6+ (30. Qxc7+ Kg6 31. gxf4 Ne2+ 32. Kf2 Nxf4 )Kxg6 $19 )R3xd4 {[%emt 0:0:55]} 29. R1a7 {[%emt 0:7:49]} Be6 {[%emt 0:4:7]} (29... Kg8 $14 )30. Rxc7+ $16 {[%emt 0:0:7]} Kg8 {[%emt 0:0:5]} 31. Raa7 {[%emt 0:4:15]} R4d7 {[%emt 0:0:46]} 32. Rxd7 $1 {[%emt 0:1:19]} Rxd7 {[%emt 0:1:13]} 33. Ra8+ {[%emt 0:0:58]} Nf8 {[%emt 0:2:28]} 34. Nc5 {[%emt 0:9:25][%csl LRd7,LRe5]} (34. Ne3 {seems wilder.} Rf7 35. Qd1 Bd7 36. Qd6 )Re7 {[%emt 0:1:19]} 35. Qe4 {[%emt 0:6:35] Black is weak on the dark squares} (35. Qxe5 Qxf1+ 36. Kxf1 Bh3+ 37. Kf2 Rxe5 $17 )Qf5 {[%emt 0:2:38]} 36. Qc6 {[%emt 0:0:17]} (36. Nxe6 $16 Qxe6 37. Ne3 )Bf7 {[%emt 0:4:3]} 37. Rd8 $40 {[%emt 0:3:19][%mdl 128] Black needs to defend precisely.} Qg6 {[%emt 0:0:19]} 38. Qa8 {[%emt 0:4:37][%csl Ga8][%cal Rd8f8]} (38. Qxg6 {simplifies} Bxg6 39. Nd2 Re8 40. Rxe8 Bxe8 41. Nc4 )Be8 {[%emt 0:0:39]} 39. Qd5+ {[%emt 0:1:45]} Kh8 {[%emt 0:3:47] Black is on the road to losing.} ({Black should try} 39... Ne6 $14 )40. Ne4 {[%emt 0:0:0] White has more active pieces.} (40. Rc8 $142 )Qe6 {[%emt 0:0:0]} 41. Qxe6 {[%emt 0:21:30]} Nxe6 {[%emt 0:3:9]} 42. Rb8 {[%emt 0:0:17] And now Ne3 would win.} Kg8 {[%emt 0:8:13]} 43. Ne3 {[%emt 0:0:14]} Kf8 {[%emt 0:4:47]} 44. Nc4 {[%emt 0:0:12]} Nd4 {[%emt 0:9:24]} (44... Rd7 $16 {was called for.} 45. Nxe5 Rd5 )45. Kf2 {[%emt 0:1:3] Ncd6 is the strong threat.} Nc6 {[%emt 0:6:9]} (45... Nb5 $16 46. Ke3 Nc7 )46. Rc8 $1 $18 {[%emt 0:0:56] Black must now prevent Ncd6.} Na7 {[%emt 0:1:57]} 47. Ra8 {[%emt 0:0:54] aiming for Ncd6.} Nb5 {[%emt 0:0:12]} 48. Rb8 $1 {[%emt 0:10:20]} Nc7 {[%emt 0:3:4]} 49. Ncd6 $1 {[%emt 0:0:49]} Re6 {[%emt 0:3:41]} 50. Rc8 {[%emt 0:0:43]} Nd5 {[%emt 0:0:10]} 51. Ke2 {[%emt 0:0:48]} h6 {[%emt 0:5:2] [#]} (51... h5 $142 52. Kd3 Re7 )52. g6 $1 {[%emt 0:6:4][%mdl 512]} h5 {[%emt 0:2:22]} (52... Nc7 53. Rxc7 )53. Kf2 {[%emt 0:1:32]} h4 {[%emt 0:3:6]} 54. gxh4 {[%emt 0:3:23] h5 would be deadly.} Nf4 {[%emt 0:0:5]} 55. Rd8 {[%emt 0:10:1]} Nxg6 {[%emt 0:0:54]} 56. Kg3 {[%emt 0:0:56]} Nf4 {[%emt 0:1:42]} 57. Kg4 {[%emt 0:0:44]} Nd5 {[%emt 0:4:30]} 58. h5 {[%emt 0:1:11]} Nc7 {[%emt 0:1:6]} 59. Rc8 {[%emt 0:1:4]} Nd5 {[%emt 0:0:17]} 60. Kg5 {[%emt 0:0:0]} Re7 {[%emt 0:0:0]} (60... Ne3 $142 61. Rb8 Nd5 )61. Nc5 {[%emt 0:14:23]} e4 {[%emt 0:5:45] [#]} 62. Nd7+ $1 {[%emt 0:9:35][%mdl 576] Deflection, Back Rank. A dynamic duo of knights.} Kg8 {[%emt 0:0:4]} 63. fxe4 {[%emt 0:11:45]} ({Inferior is} 63. Rxe8+ Rxe8 64. fxe4 (64. Nxe8 exf3 65. h6 gxh6+ 66. Kg6 f2 $19 )Re6 $17 )(63. Nxe8 Kf7 64. Nd6+ Ke6 $18 )Rxd7 $2 {[%emt 0:0:11]} (63... Nc7 $18 64. Rxc7 Bxd7 )64. Rxe8+ {[%emt 0:0:6] White mates.} (64. Nxe8 Kf7 $16 )Kh7 {[%emt 0:0:2]} 65. exd5 {[%emt 0:0:10]} Rxd6 {[%emt 0:0:14] KR-KR} 66. Re5 {[%emt 0:0:5]} Kg8 {[%emt 0:5:47] [#]} 67. Rf5 $1 {[%emt 0:7:53]} g6 {[%emt 0:2:40]} 68. hxg6 {[%emt 0:0:6]} Kg7 {[%emt 0:0:3] [#]} 69. Kf4 $1 {[%emt 0:0:4]} (69. Rf7+ Kg8 70. Rf5 Kg7 $18 )Kxg6 {[%emt 0:1:31]} 70. Ke4 {[%emt 0:0:4]} Rf6 {[%emt 0:1:9]} 71. Re5 {[%emt 0:0:7]} Rf1 {[%emt 0:4:40]} 72. Kd4 {[%emt 0:0:31]} Rc1 {[%emt 0:0:32]} 73. d6 {[%emt 0:0:46][%cal Bd5d6,Bd6d7][%mdl 32]} Ra1 {[%emt 0:0:58]} 74. Re2 {[%emt 0:0:53]} Kf7 {[%emt 0:0:15]} 75. Kd5 {[%emt 0:0:18]} Rc1 {[%emt 0:0:14]} 76. d7 {[%emt 0:0:18]} Rd1+ {[%emt 0:0:3]} 77. Kc6 {[%emt 0:0:4]} Rc1+ {[%emt 0:0:2]} 78. Kd6 {[%emt 0:0:4]} Rd1+ {[%emt 0:0:3]} 79. Kc7 {[%emt 0:0:4]} Rc1+ {[%emt 0:0:6]} 80. Kd8 {[%emt 0:0:3]} Kf8 {[%emt 0:0:22]} 81. Rf2+ {[%emt 0:0:6]} Kg7 {[%emt 0:0:3]} 82. Rf5 {[%emt 0:0:16]} Kg6 {[%emt 0:0:5]} 83. Rf4 {[%emt 0:0:4]} Kg7 {[%emt 0:0:17]} 84. Ke7 {[%emt 0:0:17]} Re1+ {[%emt 0:0:18]} 85. Kd6 {[%emt 0:0:5]} Rd1+ {[%emt 0:0:2]} 86. Ke6 {[%emt 0:0:5]} Rd2 {[%emt 0:0:6]} 87. Rf5 {[%emt 0:0:9] An entertaining game by Erigaisi Arjun.   Weighted Error Value: White=0.10 (very precise) /Black=0.20 (precise)} 1-0

[Event "56th Biel GMT Classical 2023"]
[White "Moussard,Jules"]
[Black "Deac,Bogdan-Daniel"]
[Site "Biel"]
[Round "7.4"]
[Annotator "TA"]
[Result "1/2-1/2"]
[Date "2023.07.26"]
[WhiteElo "2654"]
[BlackElo "2693"]
[PlyCount "58"]
[TimeControl "60"]

{[%evp 9,58,19,20,8,13,12,18,10,12,0,11,-2,0,0,14,18,17,6,26,0,28,20,25,32,116,35,39,15,11,31,8,21,16,22,22,24,17,17,22,0,0,0,0,0,0,0,0,0,0,0,0]} 1. e4 {[%emt 0:0:13]} e5 {[%emt 0:0:1]} 2. Nf3 {[%emt 0:0:10]} Nc6 {[%emt 0:0:16]} 3. Bb5 {[%emt 0:0:9]} Nf6 {[%emt 0:0:16][%cal Bg8f6,Bf6d7,Bd7f8,Bf8e6,Be6c5][%mdl 32]} 4. d3 {[%emt 0:0:15]} Bc5 {[%emt 0:0:38]} 5. Bxc6 {[%emt 0:0:12]} dxc6 {[%emt 0:0:0]} 6. Nbd2 {[%emt 0:0:51] C65: Ruy Lopez: Berlin Defence (3...Nf6), unusual lines and 4 0-0 Bc5.} Nd7 {[%emt 0:0:28]} 7. O-O {[%emt 0:2:6]} O-O {[%emt 0:1:20]} 8. Nc4 {[%emt 0:0:17]} f6 {[%emt 0:1:16]} 9. Nh4 {[%emt 0:0:0] 9.Kh1 is setting a new trend.} Rf7 {[%emt 0:8:1]} 10. Kh1 {[%emt 0:4:16] [#]} Nf8 $146 {[%emt 0:3:16]} ({Predecessor:} 10... Bf8 11. Nf5 Nc5 12. Qh5 Be6 13. b3 Qd7 14. Be3 Kh8 15. Nh4 Kg8 16. Qe2 Re8 {0-1 Caruana,F (2783)-Firouzja,A (2793) Candidates Tournament 2022 (14)} )11. Be3 {[%emt 0:1:4]} Ne6 {[%emt 0:1:2]} 12. Bxc5 {[%emt 0:4:34]} Nxc5 {[%emt 0:0:5]} 13. Ne3 {[%emt 0:4:16]} g6 {[%emt 0:4:45]} 14. g3 {[%emt 0:4:45]} a5 {[%emt 0:5:16]} 15. Qe1 {[%emt 0:8:15]} Bh3 {[%emt 0:12:55]} 16. Rg1 {[%emt 0:6:24]} f5 {[%emt 0:14:40] [#]} (16... Ne6 $14 )17. Qc3 {[%emt 0:5:37]} (17. exf5 $1 $16 Bxf5 18. Qc3 )Qd4 {[%emt 0:14:55]} 18. exf5 {[%emt 0:9:15] g4 would be deadly.} (18. Nf3 {looks sharper.} Qxc3 19. bxc3 fxe4 20. Ng5 )Qxc3 {[%emt 0:0:36]} 19. bxc3 {[%emt 0:0:2] g4 is the strong threat.} Bxf5 {[%emt 0:0:7]} 20. Nhxf5 {[%emt 0:1:23]} gxf5 {[%emt 0:0:2]} 21. g4 {[%emt 0:0:28]} fxg4 {[%emt 0:1:25]} 22. Nxg4 {[%emt 0:3:30] [#] aiming for Nh6+.} Kh8 {[%emt 0:0:20]} 23. Rae1 {[%emt 0:2:32] The position is equal.} Nd7 {[%emt 0:1:6]} 24. Nxe5 {[%emt 0:6:4]} Nxe5 {[%emt 0:0:40]} 25. Rxe5 {[%emt 0:0:3]} Rxf2 $11 {[%emt 0:0:11] KRR-KRR} 26. Rg2 {[%emt 0:0:6]} Rf1+ {[%emt 0:0:3]} 27. Rg1 {[%emt 0:0:1]} Rf2 {[%emt 0:0:5]} 28. Rg2 {[%emt 0:0:1]} Rf1+ {[%emt 0:0:5]} 29. Rg1 {[%emt 0:0:5]} Rf2 {[%emt 0:0:5] Weighted Error Value: White=0.11 (very precise) /Black=0.10 (very precise)} 1/2-1/2